bitfinex/quotes_SOLUSD_20260308
["timestamp","ask_amount","ask_price","bid_price","bid_amount"]
[1772958937579,0.2,82.83,82.799,0.5]
[1772958939282,0.2,82.83,82.801,0.5]
[1772958940761,0.2,82.83,82.801,0.28432314]
[1772958940968,0.2,82.83,82.802,0.5]
[1772958941671,0.2,82.83,82.805,0.5]
[1772958942158,0.2,82.84,82.805,0.5]
[1772958943261,12.27005147,82.85,82.805,0.5]
[1772958943262,0.2,82.85,82.805,0.5]
[1772958943571,0.2,82.85,82.806,42.26746853]
[1772958943882,0.2,82.85,82.808,0.5]
[1772958945672,0.2,82.85,82.811,0.5]
[1772958946595,4.66491344,82.84,82.789,0.5]
[1772958946775,4.66491344,82.83,82.789,0.5]
[1772958946967,4.66491344,82.84,82.789,0.5]
[1772958947790,12.07160878,82.839,82.791,0.5]
[1772958948890,12.07160878,82.839,82.793,0.5]
[1772958950089,12.07160878,82.839,82.795,0.5]
[1772958954393,12.07160878,82.839,82.796,12.07787815]
[1772958954694,12.07160878,82.839,82.797,0.5]
[1772958956593,12.07160878,82.839,82.799,0.5]
[1772958956789,12.07145669,82.841,82.799,0.5]
[1772958960501,42.24553102,82.849,82.8,42.27053139]
[1772958960688,42.24553102,82.849,82.801,0.5]
[1772958964999,42.24553102,82.849,82.803,0.5]
[1772958967004,12.07015172,82.849,82.806,0.5]
[1772958967207,0.2,82.85,82.807,0.5]
[1772958967381,0.2,82.86,82.807,0.5]
[1772958967582,0.2,82.86,82.81,0.5]
[1772958967781,0.2,82.87,82.81,0.5]
[1772958967978,4.86491344,82.87,82.81,0.5]
[1772958968195,4.66491344,82.86,82.81,0.5]
[1772958969885,12.06869501,82.859,82.813,0.5]
[1772958972510,42.23533528,82.869,82.815,0.5]
[1772958973007,4.66491344,82.86,82.815,0.5]
[1772958974906,12.06869501,82.859,82.816,42.26236476]
[1772958975197,12.06869501,82.859,82.817,0.5]
[1772958977807,42.24043254,82.859,82.819,0.5]
[1772958981109,42.24043254,82.859,82.82,12.07437816]
[1772958981313,42.24043254,82.859,82.821,0.5]
[1772958984592,42.24043254,82.859,82.822,12.07408659]
[1772958984794,42.24043254,82.859,82.823,0.5]
[1772958986517,4.66362376,82.86,82.825,0.5]
[1772958987913,12.06869501,82.859,82.827,0.5]
[1772958989915,4.66362376,82.85,82.817,12.07481555]
[1772958990093,4.66362376,82.85,82.812,0.5]
[1772959001729,12.07015172,82.849,82.814,0.5]
[1772959015332,12.07015172,82.849,82.816,0.5]
[1772959020133,4.66362376,82.83,82.797,0.5]
[1772959023536,16.7365643,82.83,82.799,0.5]
[1772959025336,16.7365643,82.83,82.8,12.07729468]
[1772959025524,16.7365643,82.83,82.801,0.5]
[1772959027944,16.7365643,82.83,82.803,0.5]
[1772959031249,16.7365643,82.83,82.805,0.5]
[1772959031445,16.7365643,82.83,82.804,12.07671126]
[1772959031745,16.7365643,82.83,82.805,0.5]
[1772959031946,16.7365643,82.83,82.807,0.5]
[1772959037559,16.7365643,82.83,82.789,30.19724842]
[1772959037560,4.66362376,82.83,82.809,0.5]
[1772959037731,4.66362376,82.84,82.809,0.5]
[1772959041637,12.07160878,82.839,82.809,0.5]
[1772959046558,4.66362376,82.83,82.809,0.5]
[1772959048662,12.07306619,82.829,82.809,0.5]
[1772959050745,0.47104665,82.819,82.778,30.20097853]
[1772959052665,0.47906797,82.817,82.781,0.46744734]
[1772959054569,0.47906797,82.809,82.781,0.46744734]
[1772959054765,12.07612791,82.808,82.783,0.46744734]
[1772959054970,0.47906797,82.807,82.783,0.46744734]
[1772959055173,0.47906797,82.799,82.753,0.46744734]
[1772959056849,0.47906797,82.799,82.755,0.46744734]
[1772959057366,0.47906797,82.797,82.755,0.46744734]
[1772959057555,12.07758641,82.798,82.755,0.46744734]
[1772959057556,0.47906797,82.789,82.755,0.46744734]
[1772959057755,42.27155244,82.798,82.755,0.46744734]
[1772959057756,0.47906797,82.797,82.755,0.46744734]
[1772959058870,0.47906797,82.795,82.757,0.46744734]
[1772959062069,0.47906797,82.793,82.759,0.46744734]
[1772959062252,0.47906797,82.789,82.759,0.46744734]
[1772959062673,0.47906797,82.793,82.759,0.46744734]
[1772959062975,12.07816991,82.794,82.759,0.46744734]
[1772959063354,12.55723788,82.794,82.759,0.46744734]
[1772959063771,0.47906797,82.809,82.759,0.46744734]
[1772959063975,0.47906797,82.808,82.759,0.46744734]
[1772959064173,0.47906797,82.808,82.762,0.46744734]
[1772959064380,0.47906797,82.813,82.762,0.46744734]
[1772959064975,12.0746445,82.819,82.762,0.46744734]
[1772959065362,0.47906797,82.818,82.762,0.46744734]
[1772959067574,0.47906797,82.816,82.765,0.46744734]
[1772959068777,0.47906797,82.82,82.765,0.46744734]
[1772959071177,12.07426122,82.821,82.767,0.75177048]
[1772959071381,0.47906797,82.825,82.771,0.46744734]
[1772959074279,0.47906797,82.825,82.774,0.46744734]
[1772959077680,0.47906797,82.825,82.776,0.46744734]
[1772959083587,0.47906797,82.825,82.779,0.49886918]
[1772959086589,0.47906797,82.825,82.781,0.28432314]
[1772959086775,0.47906797,82.825,82.782,0.49886918]
[1772959089792,0.47906797,82.825,82.785,0.49886918]
[1772959092194,0.47906797,82.825,82.787,0.49886918]
[1772959093792,0.46988039,82.824,82.789,0.49886918]
[1772959095593,0.46988039,82.824,82.773,0.28432314]
[1772959095594,0.46988039,82.824,82.791,0.49886918]
[1772959097401,0.46988039,82.824,82.793,0.49886918]
[1772959101294,0.46988039,82.824,82.795,0.49886918]
[1772959103197,0.46988039,82.824,82.797,0.49886918]
[1772959104491,0.46988039,82.824,82.799,0.49886918]
[1772959107697,0.46988039,82.824,82.801,0.49886918]
[1772959110485,0.46988039,82.824,82.802,12.07700297]
[1772959110685,0.46988039,82.824,82.803,0.49886918]
[1772959113609,0.46988039,82.824,82.804,12.53765463]
[1772959114385,0.46988039,82.824,82.805,0.46094337]
[1772959115702,0.46988039,82.824,82.804,12.07671126]
[1772959115921,12.07394081,82.823,82.801,0.46094337]
[1772959116111,0.47560704,82.822,82.801,0.46094337]
[1772959119794,0.47560704,82.822,82.803,0.46094337]
[1772959122311,0.47560704,82.822,82.805,0.46094337]
[1772959124619,0.47560704,82.822,82.806,12.07641958]
[1772959125115,0.47560704,82.822,82.806,12.53736295]
[1772959128915,0.47560704,82.822,82.8,0.46094337]
[1772959129418,0.47560704,82.82,82.8,0.46094337]
[1772959134707,0.47560704,82.826,82.802,0.46094337]
[1772959137826,0.47560704,82.826,82.804,0.46094337]
[1772959138528,0.47560704,82.835,82.804,0.46094337]
[1772959140633,0.47560704,82.833,82.806,0.46094337]
[1772959143626,0.49243552,82.831,82.808,0.45106978]
[1772959144934,0.49243552,82.831,82.81,0.45106978]
[1772959145718,0.49243552,82.84,82.81,0.45106978]
[1772959149614,0.49243552,82.839,82.812,0.45106978]
[1772959152634,0.49243552,82.839,82.814,0.45106978]
[1772959153836,0.49243552,82.839,82.816,0.45106978]
[1772959154030,0.49243552,82.837,82.816,0.45106978]
[1772959154636,0.49243552,82.829,82.792,0.45106978]
[1772959155420,0.49243552,82.829,82.793,0.45106978]
[1772959158645,0.49243552,82.828,82.795,0.45106978]
[1772959161142,0.49243552,82.828,82.796,12.07787815]
[1772959161345,0.49243552,82.828,82.797,0.45106978]
[1772959161648,0.49243552,82.826,82.797,0.45106978]
[1772959164639,0.49243552,82.826,82.799,0.45106978]
[1772959166453,0.49243552,82.826,82.801,0.45106978]
[1772959167649,0.49243552,82.826,82.802,12.07700297]
[1772959167848,0.49243552,82.826,82.803,0.45106978]
[1772959170456,0.49243552,82.826,82.804,12.07671126]
[1772959170637,0.49243552,82.826,82.805,0.45106978]
[1772959172758,0.49243552,82.826,82.807,0.48742906]
[1772959174757,0.48481356,82.83,82.809,0.48742906]
[1772959177452,0.48481356,82.828,82.805,0.48742906]
[1772959179665,0.48481356,82.828,82.807,0.48742906]
[1772959182667,0.48481356,82.828,82.808,12.07612791]
[1772959182861,0.48481356,82.828,82.809,0.48742906]
[1772959183249,0.48481356,82.834,82.809,0.48742906]
[1772959184663,0.48481356,82.832,82.809,0.48742906]
[1772959184863,0.48481356,82.847,82.811,0.48742906]
[1772959188548,4.66590131,82.85,82.813,0.48742906]
[1772959188549,0.48481356,82.845,82.813,0.48742906]
[1772959191766,0.48481356,82.843,82.815,0.48742906]
[1772959192160,0.48481356,82.842,82.815,0.48742906]
[1772959192675,12.07083611,82.845,82.815,0.48742906]
[1772959193379,12.55564967,82.845,82.815,0.48742906]
[1772959193555,0.48481356,82.844,82.815,0.48742906]
[1772959193754,0.48481356,82.844,82.817,0.48742906]
[1772959195656,12.07099564,82.844,82.818,12.07466975]
[1772959195856,0.48481356,82.843,82.819,0.48742906]
[1772959197781,0.48481356,82.843,82.821,0.48742906]
[1772959201887,0.48481356,82.841,82.821,0.48742906]
[1772959203688,30.17540032,82.849,82.821,0.48742906]
[1772959203689,12.07146306,82.84,82.821,0.48742906]
[1772959203994,0.486569,82.839,82.821,0.48742906]
[1772959204171,0.486569,82.839,82.823,0.46358712]
[1772959204692,0.486569,82.844,82.823,0.46358712]
[1772959205897,0.486569,82.842,82.823,0.46358712]
[1772959214979,2.47215037,100.06,82.825,0.46358712]
[1772959215200,12.06674924,82.873,82.825,0.46358712]
[1772959215377,0.486569,82.871,82.825,0.46358712]
[1772959215578,0.486569,82.869,82.825,0.46358712]
[1772959216494,0.486569,82.872,82.825,0.46358712]
[1772959216799,0.486569,82.869,82.825,0.46358712]
[1772959217299,12.06642627,82.875,82.827,0.46358712]
[1772959217300,0.486569,82.873,82.827,0.46358712]
[1772959219602,0.486569,82.873,82.829,0.46358712]
[1772959219986,0.486569,82.873,82.83,0.46358712]
[1772959220181,12.79360779,82.88,82.83,0.46358712]
[1772959221805,12.79360779,82.88,82.833,0.46358712]
[1772959222103,0.486569,82.869,82.833,0.46358712]
[1772959223602,0.486569,82.873,82.835,0.46358712]
[1772959224503,0.486569,82.872,82.835,0.46358712]
[1772959224685,0.486569,82.872,82.837,0.46358712]
[1772959225502,0.486569,82.876,82.837,0.46358712]
[1772959226401,0.486569,82.869,82.838,0.46358712]
[1772959226582,0.486569,82.874,82.841,0.46358712]
[1772959226788,0.486569,82.878,82.841,0.46358712]
[1772959227980,0.486569,82.878,82.844,0.46358712]
[1772959228387,0.486569,82.874,82.844,0.46358712]
[1772959228581,0.486569,82.869,82.832,12.07262893]
[1772959229687,0.486569,82.869,82.832,42.25420126]
[1772959229897,0.486569,82.869,82.833,0.28432314]
[1772959230508,0.486569,82.869,82.834,42.25318105]
[1772959230804,0.486569,82.869,82.835,0.46358712]
[1772959232506,0.486569,82.869,82.837,0.48313814]
[1772959233708,0.486569,82.869,82.839,0.48313814]
[1772959236710,0.486569,82.869,82.841,0.48313814]
[1772959238009,0.486569,82.869,82.693,12.06619657]
[1772959238010,0.46065249,82.909,82.844,0.28432314]
[1772959238218,0.46065249,82.909,82.847,0.43641288]
[1772959238595,0.46065249,82.909,82.842,134.11674999]
[1772959238596,0.46065249,82.909,82.853,0.43641288]
[1772959238792,4.86026156,82.93,82.894,0.48313814]
[1772959238793,0.2,82.93,82.894,0.48313814]
[1772959239096,0.2,82.93,82.859,0.48313814]
[1772959239304,0.2,82.93,82.864,0.48313814]
[1772959239609,0.2,82.93,82.869,0.28432314]
[1772959239907,0.2,82.93,82.879,0.48313814]
[1772959240090,0.2,82.93,82.88,0.48313814]
[1772959240703,0.46065249,82.929,82.88,0.48313814]
[1772959242011,0.46065249,82.929,82.883,0.48313814]
[1772959242592,0.46065249,82.927,82.883,0.48313814]
[1772959244517,0.46065249,82.927,82.885,0.48313814]
[1772959245514,0.46065249,82.927,82.887,0.48313814]
[1772959248312,0.46065249,82.927,82.89,0.48313814]
[1772959248507,0.46065249,82.927,82.892,0.48313814]
[1772959248702,0.46065249,82.927,82.893,0.48313814]
[1772959248910,0.46065249,82.927,82.894,0.48313814]
[1772959249218,0.46065249,82.927,82.895,0.48313814]
[1772959249519,0.46065249,82.927,82.896,0.48313814]
[1772959249714,0.46065249,82.927,82.897,0.48313814]
[1772959249916,0.46065249,82.927,82.898,0.48313814]
[1772959250103,0.46065249,82.927,82.899,0.48313814]
[1772959250305,0.46065249,82.927,82.902,0.48313814]
[1772959250618,0.46065249,82.927,82.904,0.48313814]
[1772959250817,0.46065249,82.927,82.904,16.62706231]
[1772959251032,0.46065249,82.927,82.905,16.62686759]
[1772959251208,0.46065249,82.927,82.906,16.14353472]
[1772959251408,0.2,82.93,82.907,0.48313814]
[1772959251614,0.2,82.94,82.912,0.48313814]
[1772959251813,0.1,82.95,82.912,0.48313814]
[1772959252320,0.1,82.95,82.915,0.48313814]
[1772959252518,0.1,82.95,82.916,0.48313814]
[1772959253305,12.05124188,82.979,82.916,0.48313814]
[1772959253500,0.46065249,82.964,82.916,0.48313814]
[1772959253708,0.46065249,82.983,82.921,0.48313814]
[1772959253911,0.46065249,82.983,82.926,0.48313814]
[1772959254111,0.46065249,82.983,82.93,0.76746128]
[1772959254308,0.46065249,82.983,82.934,0.48313814]
[1772959254528,0.46065249,82.983,82.936,0.48313814]
[1772959254927,0.46065249,82.983,82.938,0.48313814]
[1772959255225,16.70700291,83.01,82.942,0.48313814]
[1772959255430,4.66026156,83.0,82.946,0.48313814]
[1772959255606,4.66026156,83.0,82.948,0.48313814]
[1772959255923,4.66026156,82.99,82.948,0.48313814]
[1772959256430,12.04978973,82.989,82.95,0.48313814]
[1772959256628,12.04978973,82.989,82.952,0.48313814]
[1772959256807,12.04978973,82.989,82.953,0.48313814]
[1772959257011,0.38162965,82.998,82.955,0.48313814]
[1772959257429,0.38162965,82.998,82.956,0.48313814]
[1772959258726,0.38162965,82.996,82.957,12.05443784]
[1772959259021,0.38162965,82.996,82.955,13.97123769]
[1772959259022,0.38162965,82.979,82.955,26.02589509]
[1772959260806,0.38162965,82.979,82.955,13.97123769]
[1772959261101,0.38162965,82.977,82.955,13.97123769]
[1772959261307,4.66026156,83.0,82.955,13.97123769]
[1772959261308,0.38162965,83.001,82.957,0.48313814]
[1772959261506,0.38162965,83.001,82.958,16.17704197]
[1772959261723,0.38162965,83.008,82.96,0.48313814]
[1772959263028,0.38162965,83.008,82.963,0.4912199]
[1772959265210,0.38162965,83.008,82.966,0.4738869]
[1772959266309,0.38162965,83.008,82.969,0.4738869]
[1772959270039,0.38162965,83.008,82.972,0.4738869]
[1772959271547,0.38162965,83.013,82.972,0.4738869]
[1772959272242,0.38162965,83.013,82.975,0.4738869]
[1772959272439,0.38162965,83.025,82.975,0.4738869]
[1772959272818,0.48162965,83.02,82.975,0.4738869]
[1772959273037,0.38162965,83.019,82.975,0.4738869]
[1772959273223,0.1,83.02,82.975,0.4738869]
[1772959273619,0.38162965,83.03,82.977,0.28432314]
[1772959273819,0.38162965,83.028,82.978,0.4738869]
[1772959274314,0.38162965,83.028,82.981,0.4738869]
[1772959274837,4.66026156,83.05,82.974,12.05182768]
[1772959274838,0.38162965,83.019,82.974,12.05182768]
[1772959275226,0.38162965,83.019,82.974,12.52571458]
[1772959275819,0.38162965,83.017,82.974,12.52571458]
[1772959276437,0.38162965,83.017,82.975,0.4738869]
[1772959276939,0.38162965,83.017,82.974,12.05182768]
[1772959277138,0.38162965,83.009,82.974,12.05182768]
[1772959277320,0.38162965,83.009,82.969,12.05269437]
[1772959277937,0.38162965,83.009,82.963,0.4738869]
[1772959277938,4.66026156,83.0,82.965,12.05327456]
[1772959278143,0.38162965,82.999,82.965,12.05327456]
[1772959278940,0.38162965,82.999,82.966,0.4738869]
[1772959280119,0.38162965,82.998,82.968,0.4738869]
[1772959280521,0.38162965,83.01,82.968,0.4738869]
[1772959281425,0.38162965,83.019,82.969,0.4738869]
[1772959281947,0.38162965,83.019,82.971,0.4738869]
[1772959282246,0.38162965,83.017,82.974,0.4738869]
[1772959282944,0.38162965,83.009,82.972,42.18290507]
[1772959284029,0.38162965,83.009,82.972,12.05225859]
[1772959284247,0.38162965,83.007,82.972,12.05225859]
[1772959284831,0.38162965,83.007,82.973,0.4738869]
[1772959286450,4.66026156,83.02,82.974,12.05196808]
[1772959286451,0.38162965,83.005,82.974,12.05196808]
[1772959287440,0.38162965,83.005,82.975,0.4738869]
[1772959288956,0.38162965,83.003,82.976,12.05167759]
[1772959290949,0.38162965,83.001,82.976,12.05167759]
[1772959292256,0.38162965,82.999,82.976,12.05167759]
[1772959293344,0.38162965,82.997,82.967,0.46939631]
[1772959294475,0.38162965,82.997,82.962,17.30022891]
[1772959294638,0.38162965,82.989,82.962,17.30022891]
[1772959295347,0.38162965,82.987,82.962,17.30022891]
[1772959296759,0.38162965,82.987,82.962,16.91859926]
[1772959296948,4.64808023,82.98,82.962,16.91859926]
[1772959297360,12.05124188,82.979,82.962,16.91859926]
[1772959297564,42.17934658,82.979,82.946,0.46939631]
[1772959298158,12.05124188,82.979,82.946,12.05602945]
[1772959298365,12.05124188,82.979,82.947,0.5]
[1772959299349,0.28432314,82.985,82.949,0.5]
[1772959300560,4.64808023,82.98,82.949,0.5]
[1772959301166,4.64808023,82.97,82.944,12.05626774]
[1772959301469,12.05269437,82.969,82.938,12.05708547]
[1772959301656,4.64808023,82.96,82.935,12.05763549]
[1772959301867,4.64808023,82.96,82.928,16.65213736]
[1772959302456,4.64808023,82.95,82.928,16.65213736]
[1772959302650,4.64808023,82.96,82.928,16.65213736]
[1772959303963,12.05414722,82.959,82.928,16.65213736]
[1772959304260,4.64808023,82.95,82.928,16.65213736]
[1772959304441,12.05414722,82.959,82.929,0.5]
[1772959304646,0.28432314,82.969,82.929,0.5]
[1772959305062,4.64808023,82.96,82.929,0.5]
[1772959306264,12.05283964,82.968,82.931,0.5]
[1772959306765,4.64808023,82.96,82.928,16.65213736]
[1772959308867,12.05414722,82.959,82.928,16.65213736]
[1772959309572,12.05414722,82.959,82.929,0.5]
[1772959310558,12.05414722,82.959,82.928,16.65213736]
[1772959310763,42.18951529,82.959,82.928,16.65213736]
[1772959310975,4.64808023,82.95,82.928,16.65213736]
[1772959313156,12.05560042,82.949,82.928,16.65213736]
[1772959313780,0.14216157,82.968,82.93,0.5]
[1772959313953,4.64808023,82.96,82.93,0.5]
[1772959317285,12.05414722,82.959,82.93,0.5]
[1772959318600,12.05414722,82.959,82.932,0.5]
[1772959320984,4.64808023,82.95,82.932,0.5]
[1772959321388,42.18951529,82.959,82.932,0.5]
[1772959321589,42.18951529,82.959,82.928,16.65213736]
[1772959321794,4.64808023,82.95,82.928,17.15213736]
[1772959322086,42.18951529,82.959,82.928,17.15213736]
[1772959323088,4.64808023,82.95,82.928,16.65213736]
[1772959323794,12.05560042,82.949,82.928,16.65213736]
[1772959323988,12.05560042,82.949,82.929,0.5]
[1772959324990,12.05414722,82.959,82.93,0.5]
[1772959325199,12.05298492,82.967,82.93,0.5]
[1772959325773,12.05298492,82.967,82.931,12.05821707]
[1772959325978,12.05298492,82.967,82.932,0.5]
[1772959328777,12.05298492,82.967,82.934,0.5]
[1772959330297,4.64808023,82.96,82.934,0.5]
[1772959330891,4.64808023,82.97,82.936,0.5]
[1772959334781,12.05269437,82.969,82.938,0.5]
[1772959339803,12.05269437,82.969,82.94,0.5]
[1772959341700,12.05414722,82.959,82.931,0.5]
[1772959342404,12.05363187,82.963,82.931,0.5]
[1772959344191,4.64808023,82.97,82.933,0.5]
[1772959345691,4.64808023,82.97,82.935,0.5]
[1772959347503,0.28432314,82.98,82.873,9.23414324]
[1772959347504,4.64808023,82.96,82.93,0.5]
[1772959347707,12.05560042,82.949,82.93,0.5]
[1772959349395,42.19460149,82.949,82.919,0.5]
[1772959351411,42.19460149,82.949,82.914,0.5]
[1772959352396,42.19460149,82.949,82.916,0.5]
[1772959354501,12.05560042,82.949,82.917,12.06025302]
[1772959354706,12.05560042,82.949,82.918,0.5]
[1772959356618,12.05560042,82.949,82.92,0.5]
[1772959360015,12.05560042,82.949,82.922,0.5]
[1772959363648,12.05560042,82.949,82.924,0.5]
[1772959366522,65.086024,82.973,82.926,0.5]
[1772959366523,12.05371133,82.962,82.926,0.5]
[1772959366731,4.65273232,82.96,82.926,0.5]
[1772959370231,12.05414722,82.959,82.928,0.5]
[1772959371331,16.87340395,82.997,82.928,0.5]
[1772959371628,0.28432314,82.996,82.93,0.5]
[1772959372021,12.04862826,82.997,82.93,0.5]
[1772959372219,4.65273232,82.99,82.933,0.5]
[1772959373728,4.65273232,82.98,82.933,0.5]
[1772959374304,12.05124188,82.979,82.935,0.5]
[1772959376610,0.28432314,82.985,82.937,0.5]
[1772959376811,4.65273232,82.98,82.937,0.5]
[1772959378661,4.65273232,82.98,82.936,42.20121539]
[1772959378662,42.17934658,82.979,82.939,0.5]
[1772959379438,4.65273232,82.97,82.939,0.5]
[1772959380028,12.05269437,82.969,82.941,0.5]
[1772959380730,42.18443031,82.969,82.941,0.5]
[1772959381038,4.65273232,82.96,82.936,0.5]
[1772959382923,4.65273232,82.97,82.937,12.05734473]
[1772959383122,4.65273232,82.97,82.938,0.5]
[1772959386549,12.05269437,82.969,82.94,0.5]
[1772959389645,4.65273232,82.98,82.942,0.5]
[1772959391444,12.05124188,82.979,82.944,0.5]
[1772959393546,12.04978973,82.989,82.946,0.5]
[1772959395654,4.65273232,83.02,82.951,0.5]
[1772959395955,12.04456489,83.025,82.952,0.5]
[1772959395956,4.65273232,83.01,82.952,0.5]
[1772959398052,0.14216157,83.017,82.955,0.5]
[1772959398251,4.65273232,83.01,82.955,0.5]
[1772959401070,12.04688648,83.009,82.957,0.5]
[1772959403846,42.16410268,83.009,82.959,0.5]
[1772959404858,12.04688648,83.009,82.959,0.5]
[1772959405079,30.11057739,83.028,82.96,0.5]
[1772959405262,4.65273232,83.02,82.96,0.5]
[1772959406780,12.04543538,83.019,82.963,0.5]
[1772959407377,4.65273232,83.0,82.963,0.5]
[1772959407565,4.65273232,83.01,82.963,0.5]
[1772959408279,4.65273232,83.0,82.963,0.5]
[1772959409979,12.04833793,82.999,82.965,0.5]
[1772959412666,0.28432314,83.009,82.967,0.5]
[1772959412866,4.65273232,83.01,82.967,0.5]
[1772959416569,12.04688648,83.009,82.969,0.5]
[1772959417386,42.16410268,83.009,82.969,0.5]
[1772959418071,0.468164,83.008,82.968,40.68493876]
[1772959419865,0.468164,83.006,82.948,0.28432314]
[1772959420086,0.468164,83.006,82.949,0.49869707]
[1772959421992,0.468164,83.004,82.952,0.49869707]
[1772959423085,30.11395766,83.018,82.955,0.49869707]
[1772959423388,0.468164,83.017,82.955,0.49869707]
[1772959423723,4.64625832,83.02,82.96,0.49869707]
[1772959423724,0.468164,83.016,82.96,0.49869707]
[1772959424383,12.04538883,83.02,82.96,0.49869707]
[1772959424791,0.468164,83.019,82.963,0.49869707]
[1772959426794,0.468164,83.017,82.966,0.49869707]
[1772959428889,4.64625832,83.03,82.969,0.49869707]
[1772959428890,0.468164,83.015,82.969,0.49869707]
[1772959430876,0.468164,83.015,82.972,0.49869707]
[1772959433473,0.468164,83.015,82.974,0.49869707]
[1772959433680,0.468164,83.015,82.975,0.49869707]
[1772959434886,0.468164,83.015,82.977,0.49869707]
[1772959436693,0.468164,83.013,82.977,0.49869707]
[1772959437585,0.468164,83.013,82.979,0.49869707]
[1772959438206,0.468164,83.011,82.979,0.49869707]
[1772959438686,0.28432314,83.033,82.979,0.49869707]
[1772959438687,0.468164,83.029,82.979,0.49869707]
[1772959439694,0.468164,83.027,82.981,0.49869707]
[1772959443306,4.64625832,83.02,82.982,12.54891109]
[1772959443607,0.47093181,83.019,82.983,0.4981049]
[1772959445806,0.49892352,83.017,82.985,0.47017372]
[1772959447910,0.49892352,83.015,82.987,0.47017372]
[1772959448092,0.49892352,83.015,82.983,0.47017372]
[1772959452409,0.49892352,83.013,82.983,0.47017372]
[1772959452610,0.49892352,82.999,82.962,0.47017372]
[1772959454004,0.49892352,83.009,82.962,0.47017372]
[1772959456012,0.49892352,83.009,82.957,42.19053244]
[1772959456013,0.49892352,83.007,82.964,0.47017372]
[1772959458495,0.49892352,83.005,82.966,0.47017372]
[1772959459814,0.49892352,83.003,82.968,0.47017372]
[1772959461920,0.49892352,83.001,82.97,0.47017372]
[1772959464026,0.49892352,83.001,82.972,0.47017372]
[1772959464214,0.49892352,82.999,82.972,0.47017372]
[1772959464403,0.49892352,82.999,82.971,12.05240385]
[1772959464723,0.49892352,82.999,82.97,0.47017372]
[1772959466017,0.49892352,82.999,82.972,0.47017372]
[1772959466222,0.49892352,82.997,82.972,0.47017372]
[1772959468117,0.49892352,82.995,82.974,0.47017372]
[1772959468324,0.49892352,83.008,82.974,0.47017372]
[1772959469425,0.49892352,83.007,82.976,0.47017372]
[1772959472228,12.04732188,83.006,82.977,12.05153235]
[1772959472419,0.49892352,83.005,82.978,0.47017372]
[1772959473825,12.04761216,83.004,82.978,0.47017372]
[1772959474029,0.47554028,83.003,82.978,0.47017372]
[1772959476430,0.47554028,83.003,82.946,60.56380458]
[1772959476431,0.47554028,83.028,82.98,0.47935983]
[1772959476633,12.16,83.08,82.98,0.47935983]
[1772959476634,0.47554028,83.032,82.981,0.47935983]
[1772959476932,0.1,83.06,82.981,0.47935983]
[1772959476933,0.47554028,83.029,82.982,0.47935983]
[1772959478530,0.47554028,83.027,82.985,0.47935983]
[1772959480136,0.2545136,83.043,82.984,0.28432314]
[1772959480137,0.2545136,83.043,82.986,0.47935983]
[1772959480329,0.1,83.06,82.989,0.47935983]
[1772959480538,0.1,83.06,83.002,0.47935983]
[1772959480734,0.1,83.1,83.007,0.48777014]
[1772959480924,30.08885073,83.088,83.011,0.48777014]
[1772959481124,30.08885073,83.088,83.015,0.48777014]
[1772959481125,4.74402045,83.08,83.015,0.48777014]
[1772959481440,0.1,83.08,83.021,0.48777014]
[1772959481638,0.1,83.08,83.023,0.48777014]
[1772959481937,16.78061168,83.08,83.023,0.48777014]
[1772959482143,4.64402045,83.07,83.023,0.48777014]
[1772959482325,42.22806932,83.08,83.023,0.48777014]
[1772959482526,4.64402045,83.07,83.023,0.48777014]
[1772959482726,4.64402045,83.07,83.018,13.01468059]
[1772959482727,0.02445972,83.068,83.025,0.48777014]
[1772959482926,0.02445972,83.059,83.025,0.48777014]
[1772959483139,4.64402045,83.05,83.025,0.48777014]
[1772959483343,0.02445972,83.049,83.02,0.48777014]
[1772959484525,12.06554389,83.049,83.02,0.48777014]
[1772959484727,0.02445972,83.048,83.02,0.48777014]
[1772959487327,0.02445972,83.039,83.018,13.01468059]
[1772959487740,0.02445972,83.039,83.018,6.53879979]
[1772959487933,4.64402045,83.03,82.984,0.5]
[1772959488142,4.64402045,83.03,82.985,0.5]
[1772959488346,4.64402045,83.04,82.985,0.5]
[1772959488549,4.64402045,83.03,82.985,0.5]
[1772959488752,4.64402045,83.04,82.986,12.05022533]
[1772959488930,4.64402045,83.04,82.987,0.5]
[1772959491533,4.64402045,83.02,82.989,0.5]
[1772959491732,4.64402045,83.02,82.851,26.918401]
[1772959491733,4.64402045,83.01,82.98,0.5]
[1772959492846,12.04688648,83.009,82.981,0.5]
[1772959494555,12.04688648,83.009,82.983,0.5]